[Event "*** Titled Tuesday Blitz"]
[Site "Chess.com"]
[Date "2020.12.29"]
[Round "6"]
[White "NeverW84M8"]
[Black "ChessLover0108"]
[Result "0-1"]
[WhiteElo "2502"]
[BlackElo "2747"]
[TimeControl "180+1"]
[EndTime "11:05:24 PST"]
[Termination "ChessLover0108 won by resignation"]

1. d4 {[%clk 0:03:00.9]} 1... d6 {[%clk 0:03:00]} 2. e4 {[%clk 0:03:00.9]} 2...
g6 {[%clk 0:03:00.9]} 3. g3 {[%clk 0:03:00.7]} 3... Bg7 {[%clk 0:03:01.8]} 4.
Bg2 {[%clk 0:03:01.3]} 4... c5 {[%clk 0:02:58.6]} 5. c3 {[%clk 0:03:00.2]} 5...
cxd4 {[%clk 0:02:57.9]} 6. cxd4 {[%clk 0:03:00.6]} 6... Nc6 {[%clk 0:02:58.8]}
7. Ne2 {[%clk 0:03:00.8]} 7... Bg4 {[%clk 0:02:58.2]} 8. f3 {[%clk 0:02:56.5]}
8... Bd7 {[%clk 0:02:58.7]} 9. Nbc3 {[%clk 0:02:55.2]} 9... Nf6 {[%clk
0:02:59.2]} 10. O-O {[%clk 0:02:54.3]} 10... O-O {[%clk 0:02:59.8]} 11. Kh1
{[%clk 0:02:51]} 11... Rc8 {[%clk 0:02:59.3]} 12. f4 {[%clk 0:02:45.8]} 12...
Bg4 {[%clk 0:02:56]} 13. h3 {[%clk 0:02:45.6]} 13... Bxe2 {[%clk 0:02:54.3]} 14.
Nxe2 {[%clk 0:02:46.5]} 14... d5 {[%clk 0:02:55]} 15. e5 {[%clk 0:02:45.2]}
15... Ne4 {[%clk 0:02:55.6]} 16. Be3 {[%clk 0:02:31.3]} 16... f5 {[%clk
0:02:55.1]} 17. Qb3 {[%clk 0:02:23.3]} 17... Na5 {[%clk 0:02:51.1]} 18. Qd3
{[%clk 0:02:17.2]} 18... Nc4 {[%clk 0:02:51.2]} 19. Bc1 {[%clk 0:02:12]} 19...
Qa5 {[%clk 0:02:31.2]} 20. Nc3 {[%clk 0:02:07.4]} 20... Nxc3 {[%clk 0:02:25]}
21. Qxc3 {[%clk 0:02:06.6]} 21... e6 {[%clk 0:02:08.2]} 22. Qxa5 {[%clk
0:01:48.7]} 22... Nxa5 {[%clk 0:02:09.1]} 23. Bd2 {[%clk 0:01:22.8]} 23... Nc6
{[%clk 0:02:06.6]} 24. Bc3 {[%clk 0:01:19.9]} 24... Rc7 {[%clk 0:02:07.2]} 25.
Rfd1 {[%clk 0:01:10.7]} 25... Rfc8 {[%clk 0:02:07.5]} 26. Bf1 {[%clk 0:01:11.1]}
26... Bf8 {[%clk 0:02:07.1]} 27. a3 {[%clk 0:01:10.8]} 27... a6 {[%clk
0:02:06.7]} 28. Kg2 {[%clk 0:01:09.1]} 28... Kf7 {[%clk 0:02:05.3]} 29. Kf3
{[%clk 0:01:09.5]} 29... Na7 {[%clk 0:01:57.8]} 30. Ke3 {[%clk 0:00:32]} 30...
Nb5 {[%clk 0:01:54.4]} 31. Be1 {[%clk 0:00:31.8]} 31... Rc2 {[%clk 0:01:53.4]}
32. Rab1 {[%clk 0:00:31.3]} 32... Be7 {[%clk 0:01:48.6]} 33. a4 {[%clk
0:00:30.5]} 33... Na7 {[%clk 0:01:46.4]} 34. Bc3 {[%clk 0:00:24.7]} 34... Nc6
{[%clk 0:01:44]} 35. Bd3 {[%clk 0:00:22.6]} 35... Rh2 {[%clk 0:01:42.7]} 36. Rh1
{[%clk 0:00:22.5]} 36... Rxh1 {[%clk 0:01:42.6]} 37. Rxh1 {[%clk 0:00:23.4]}
37... Bb4 {[%clk 0:01:43.2]} 38. Rc1 {[%clk 0:00:19.9]} 38... Bxc3 {[%clk
0:01:42.5]} 39. Rxc3 {[%clk 0:00:19.3]} 39... Ke7 {[%clk 0:01:43.4]} 40. Rc5
{[%clk 0:00:18.4]} 40... Kd7 {[%clk 0:01:43.6]} 41. a5 {[%clk 0:00:18.7]} 41...
Ne7 {[%clk 0:01:38.7]} 42. Rxc8 {[%clk 0:00:13.9]} 42... Kxc8 {[%clk 0:01:39.6]}
43. Bc2 {[%clk 0:00:08.5]} 43... Nc6 {[%clk 0:01:38.5]} 44. Ba4 {[%clk
0:00:08.8]} 44... Nxa5 {[%clk 0:01:39.4]} 45. Be8 {[%clk 0:00:08.5]} 45... Kd8
{[%clk 0:01:37.3]} 46. Bf7 {[%clk 0:00:08.4]} 46... Ke7 {[%clk 0:01:38.2]} 47.
Bg8 {[%clk 0:00:08.8]} 47... h6 {[%clk 0:01:38.3]} 48. Kd3 {[%clk 0:00:07.6]}
48... Nc6 {[%clk 0:01:38.6]} 49. Kc3 {[%clk 0:00:07.3]} 49... b5 {[%clk
0:01:38.4]} 50. b4 {[%clk 0:00:07]} 50... a5 {[%clk 0:01:38.8]} 51. bxa5 {[%clk
0:00:07.3]} 51... Nxa5 {[%clk 0:01:39.7]} 52. Kb4 {[%clk 0:00:07.9]} 52... Nc6+
{[%clk 0:01:39.7]} 53. Kc5 {[%clk 0:00:07.9]} 53... b4 {[%clk 0:01:40.1]} 54.
Bh7 {[%clk 0:00:05]} 54... b3 {[%clk 0:01:39.2]} 0-1

[Event "*** Titled Tuesday Blitz"]
[Site "Chess.com"]
[Date "2020.12.29"]
[Round "6"]
[White "Caisachess"]
[Black "geordie_derraugh"]
[Result "0-1"]
[WhiteElo "2356"]
[BlackElo "2523"]
[TimeControl "180+1"]
[EndTime "11:05:24 PST"]
[Termination "geordie_derraugh won by resignation"]

1. e4 {[%clk 0:03:00.9]} 1... c5 {[%clk 0:02:59.6]} 2. c3 {[%clk 0:03:00.7]}
2... Nf6 {[%clk 0:02:58.7]} 3. e5 {[%clk 0:03:00.9]} 3... Nd5 {[%clk 0:02:58.7]}
4. d4 {[%clk 0:03:01.5]} 4... cxd4 {[%clk 0:02:54.5]} 5. Nf3 {[%clk 0:03:02.4]}
5... Nc6 {[%clk 0:02:50.9]} 6. cxd4 {[%clk 0:03:03.3]} 6... e6 {[%clk
0:02:48.2]} 7. Bc4 {[%clk 0:03:03.7]} 7... d6 {[%clk 0:02:48]} 8. O-O {[%clk
0:03:03.4]} 8... Be7 {[%clk 0:02:46.3]} 9. a3 {[%clk 0:03:03.8]} 9... O-O {[%clk
0:02:44.8]} 10. Qe2 {[%clk 0:03:04.2]} 10... a6 {[%clk 0:02:36.4]} 11. Bd3
{[%clk 0:03:03.1]} 11... Bd7 {[%clk 0:02:30]} 12. Re1 {[%clk 0:03:03]} 12... f5
{[%clk 0:02:28.6]} 13. exf6 {[%clk 0:03:02.1]} 13... Nxf6 {[%clk 0:02:28.8]} 14.
Nc3 {[%clk 0:03:00.7]} 14... Qe8 {[%clk 0:02:22.2]} 15. Bd2 {[%clk 0:02:42.6]}
15... Qh5 {[%clk 0:02:18.1]} 16. Rad1 {[%clk 0:02:42.7]} 16... Rae8 {[%clk
0:02:16.6]} 17. h3 {[%clk 0:02:35.1]} 17... Kh8 {[%clk 0:02:11.6]} 18. Ne4
{[%clk 0:02:33.8]} 18... Nd5 {[%clk 0:02:04.7]} 19. Ng3 {[%clk 0:02:30.2]} 19...
Qf7 {[%clk 0:02:01.2]} 20. Qe4 {[%clk 0:02:28.8]} 20... Nf6 {[%clk 0:01:57.2]}
21. Qh4 {[%clk 0:02:28.7]} 21... g6 {[%clk 0:01:50.7]} 22. Ng5 {[%clk
0:02:22.2]} 22... Qg8 {[%clk 0:01:49.8]} 23. N3e4 {[%clk 0:01:26]} 23... Nxd4
{[%clk 0:01:41.9]} 24. Bc3 {[%clk 0:01:24.1]} 24... e5 {[%clk 0:01:33.4]} 25.
Bb1 {[%clk 0:00:28.5]} 25... Nf5 {[%clk 0:01:28.1]} 26. Nxf6 {[%clk 0:00:22.8]}
26... Nxh4 {[%clk 0:01:26.6]} 27. Nxg8 {[%clk 0:00:21.9]} 27... Bxg5 {[%clk
0:01:25.2]} 28. Rxd6 {[%clk 0:00:17.9]} 28... Bc6 {[%clk 0:01:15.8]} 29. Rxe5
{[%clk 0:00:15.8]} 29... Rxe5 {[%clk 0:01:14.9]} 30. Bxe5+ {[%clk 0:00:15.5]}
30... Kxg8 {[%clk 0:01:04.5]} 31. Ba2+ {[%clk 0:00:15.8]} 31... Rf7 {[%clk
0:01:04.9]} 32. f4 {[%clk 0:00:14]} 32... Be7 {[%clk 0:01:00.4]} 33. Re6 {[%clk
0:00:12.3]} 33... Kf8 {[%clk 0:01:00.2]} 34. Rxc6 {[%clk 0:00:06.2]} 34... bxc6
{[%clk 0:00:59.3]} 35. Bxf7 {[%clk 0:00:06.4]} 35... Kxf7 {[%clk 0:00:59.4]} 36.
g4 {[%clk 0:00:06.2]} 36... Nf3+ {[%clk 0:00:59.1]} 37. Kf2 {[%clk 0:00:06.8]}
37... Nxe5 {[%clk 0:00:59.7]} 38. fxe5 {[%clk 0:00:07.4]} 38... Ke6 {[%clk
0:01:00.5]} 39. Ke3 {[%clk 0:00:08.3]} 39... Kxe5 {[%clk 0:01:01.2]} 0-1

[Event "*** Titled Tuesday Blitz"]
[Site "Chess.com"]
[Date "2020.12.29"]
[Round "6"]
[White "rududuyk"]
[Black "MoreChessJulia"]
[Result "0-1"]
[WhiteElo "2264"]
[BlackElo "2110"]
[TimeControl "180+1"]
[EndTime "11:05:24 PST"]
[Termination "MoreChessJulia won by resignation"]

1. e4 {[%clk 0:03:00.9]} 1... c5 {[%clk 0:02:59.1]} 2. Nc3 {[%clk 0:03:01.3]}
2... Nc6 {[%clk 0:02:56.3]} 3. f4 {[%clk 0:03:01.7]} 3... e6 {[%clk 0:02:54.9]}
4. Nf3 {[%clk 0:03:02]} 4... a6 {[%clk 0:02:53.4]} 5. a4 {[%clk 0:03:00.4]} 5...
d5 {[%clk 0:02:52.5]} 6. e5 {[%clk 0:02:54.7]} 6... b6 {[%clk 0:02:47.7]} 7. g3
{[%clk 0:02:50.5]} 7... f5 {[%clk 0:02:46.7]} 8. exf6 {[%clk 0:02:42]} 8... Nxf6
{[%clk 0:02:44.2]} 9. Bg2 {[%clk 0:02:41.9]} 9... Bd6 {[%clk 0:02:42.7]} 10. O-O
{[%clk 0:02:33.2]} 10... O-O {[%clk 0:02:41.4]} 11. Re1 {[%clk 0:02:29.2]} 11...
Qc7 {[%clk 0:02:37]} 12. d3 {[%clk 0:02:12.9]} 12... g6 {[%clk 0:02:25.6]} 13.
Ng5 {[%clk 0:02:01.4]} 13... Nd4 {[%clk 0:02:20.2]} 14. Be3 {[%clk 0:01:39]}
14... h6 {[%clk 0:02:15.3]} 15. Nh3 {[%clk 0:01:25.5]} 15... Bb7 {[%clk
0:02:14.1]} 16. Bxd4 {[%clk 0:01:15]} 16... cxd4 {[%clk 0:02:13]} 17. Ne2 {[%clk
0:01:12.7]} 17... Rae8 {[%clk 0:02:09.1]} 18. Nxd4 {[%clk 0:01:04.5]} 18... Bc5
{[%clk 0:02:08]} 19. c3 {[%clk 0:01:03.9]} 19... e5 {[%clk 0:02:07.3]} 20. fxe5
{[%clk 0:00:59.7]} 20... Rxe5 {[%clk 0:02:06.3]} 21. Kh1 {[%clk 0:00:56]} 21...
Rfe8 {[%clk 0:02:02.2]} 22. Rxe5 {[%clk 0:00:49.7]} 22... Rxe5 {[%clk 0:02:01]}
23. Nf3 {[%clk 0:00:48.6]} 23... Re3 {[%clk 0:01:51]} 24. d4 {[%clk 0:00:47.7]}
24... Bd6 {[%clk 0:01:44.6]} 25. Qd2 {[%clk 0:00:45]} 25... Ng4 {[%clk
0:01:41.8]} 26. Nf2 {[%clk 0:00:35.1]} 26... Nxf2+ {[%clk 0:01:35.1]} 27. Qxf2
{[%clk 0:00:36]} 27... Re7 {[%clk 0:01:33.3]} 28. Rf1 {[%clk 0:00:32.6]} 28...
Rf7 {[%clk 0:01:31.8]} 29. Qe3 {[%clk 0:00:25.1]} 29... Kh7 {[%clk 0:01:29]} 30.
Re1 {[%clk 0:00:19.9]} 30... Bc6 {[%clk 0:01:26]} 31. Nh4 {[%clk 0:00:18.4]}
31... Bxa4 {[%clk 0:01:19.3]} 32. Qd3 {[%clk 0:00:18.6]} 32... Rg7 {[%clk
0:01:10.4]} 33. Re6 {[%clk 0:00:17.9]} 33... Qf7 {[%clk 0:01:03]} 34. Bxd5
{[%clk 0:00:18.2]} 34... Bc6 {[%clk 0:01:00.9]} 35. Rxg6 {[%clk 0:00:11.2]}
35... Bxd5+ {[%clk 0:00:58.3]} 36. Kg1 {[%clk 0:00:04]} 36... Rxg6 {[%clk
0:00:57.7]} 37. Nxg6 {[%clk 0:00:03.3]} 37... Qxg6 {[%clk 0:00:57]} 0-1

[Event "*** Titled Tuesday Blitz"]
[Site "Chess.com"]
[Date "2020.12.29"]
[Round "6"]
[White "mishanick"]
[Black "AlexeiShirov"]
[Result "0-1"]
[WhiteElo "2978"]
[BlackElo "2845"]
[TimeControl "180+1"]
[EndTime "11:05:30 PST"]
[Termination "AlexeiShirov won by resignation"]

1. c4 {[%clk 0:02:58.1]} 1... c6 {[%clk 0:02:59.1]} 2. d4 {[%clk 0:02:53.5]}
2... d5 {[%clk 0:02:58.8]} 3. Nf3 {[%clk 0:02:54.3]} 3... Nf6 {[%clk 0:02:58.5]}
4. Nc3 {[%clk 0:02:55]} 4... e6 {[%clk 0:02:57.7]} 5. Bg5 {[%clk 0:02:55.6]}
5... dxc4 {[%clk 0:02:56.1]} 6. e4 {[%clk 0:02:56.2]} 6... b5 {[%clk 0:02:56.1]}
7. e5 {[%clk 0:02:56.2]} 7... h6 {[%clk 0:02:56.2]} 8. Bh4 {[%clk 0:02:56.6]}
8... g5 {[%clk 0:02:56.4]} 9. Nxg5 {[%clk 0:02:57.3]} 9... hxg5 {[%clk
0:02:56.3]} 10. Bxg5 {[%clk 0:02:58.2]} 10... Nbd7 {[%clk 0:02:55.9]} 11. exf6
{[%clk 0:02:58.7]} 11... Bb7 {[%clk 0:02:55.3]} 12. g3 {[%clk 0:02:59]} 12... c5
{[%clk 0:02:55]} 13. d5 {[%clk 0:02:59.3]} 13... Qb6 {[%clk 0:02:54.8]} 14. Bg2
{[%clk 0:02:57.7]} 14... O-O-O {[%clk 0:02:52.9]} 15. O-O {[%clk 0:02:56.8]}
15... b4 {[%clk 0:02:52.8]} 16. Na4 {[%clk 0:02:52.4]} 16... Qa6 {[%clk
0:02:52.2]} 17. a3 {[%clk 0:02:48.2]} 17... Bxd5 {[%clk 0:02:51]} 18. Bxd5
{[%clk 0:02:44.8]} 18... Ne5 {[%clk 0:02:50.7]} 19. axb4 {[%clk 0:02:44.8]}
19... Rxd5 {[%clk 0:02:49.2]} 20. Qe2 {[%clk 0:02:45.2]} 20... cxb4 {[%clk
0:02:49.3]} 21. Nc3 {[%clk 0:02:45.2]} 21... Qd6 {[%clk 0:02:49.2]} 22. Nxd5
{[%clk 0:02:45.8]} 22... Qxd5 {[%clk 0:02:48.2]} 23. f3 {[%clk 0:02:46.3]} 23...
Bc5+ {[%clk 0:02:41.5]} 24. Be3 {[%clk 0:02:46.3]} 24... Nd3 {[%clk 0:02:40.2]}
25. Bxc5 {[%clk 0:02:43.5]} 25... Qxc5+ {[%clk 0:02:39.6]} 26. Kh1 {[%clk
0:02:44]} 26... Qd4 {[%clk 0:02:24.8]} 27. Ra6 {[%clk 0:02:32.8]} 27... Rh5
{[%clk 0:02:00.2]} 28. Rxe6 {[%clk 0:01:08.5]} 28... fxe6 {[%clk 0:01:49]} 29.
Qxe6+ {[%clk 0:01:09.4]} 29... Qd7 {[%clk 0:01:35.1]} 30. Qxc4+ {[%clk
0:01:07.5]} 30... Rc5 {[%clk 0:01:25.2]} 31. Qg8+ {[%clk 0:00:47.4]} 31... Kb7
{[%clk 0:01:20.9]} 32. Qg6 {[%clk 0:00:21.9]} 32... Rc2 {[%clk 0:01:08.4]} 33.
Qg4 {[%clk 0:00:13.3]} 33... Nf2+ {[%clk 0:01:04.9]} 34. Rxf2 {[%clk 0:00:10.6]}
34... Qxg4 {[%clk 0:01:04.7]} 35. fxg4 {[%clk 0:00:07.5]} 35... Rxf2 {[%clk
0:01:04.1]} 36. g5 {[%clk 0:00:08.1]} 36... Kc6 {[%clk 0:01:03.1]} 37. h4 {[%clk
0:00:08.2]} 37... Kd7 {[%clk 0:01:00.1]} 38. h5 {[%clk 0:00:08.3]} 38... Rf5
{[%clk 0:00:59.3]} 39. h6 {[%clk 0:00:04.1]} 39... Rxg5 {[%clk 0:00:58.6]} 40.
g4 {[%clk 0:00:04.7]} 40... Rxg4 {[%clk 0:00:58.2]} 0-1

[Event "*** Titled Tuesday Blitz"]
[Site "Chess.com"]
[Date "2020.12.29"]
[Round "6"]
[White "ENajer77"]
[Black "LilRag"]
[Result "0-1"]
[WhiteElo "2625"]
[BlackElo "2487"]
[TimeControl "180+1"]
[EndTime "11:05:30 PST"]
[Termination "LilRag won on time"]

1. d4 {[%clk 0:03:00.9]} 1... Nf6 {[%clk 0:02:59.3]} 2. c4 {[%clk 0:03:00.3]}
2... e6 {[%clk 0:02:59.9]} 3. Nf3 {[%clk 0:02:59.2]} 3... Bb4+ {[%clk
0:03:00.1]} 4. Bd2 {[%clk 0:02:58.5]} 4... a5 {[%clk 0:03:00.7]} 5. Nc3 {[%clk
0:02:56.5]} 5... d5 {[%clk 0:02:58.9]} 6. a3 {[%clk 0:02:38.6]} 6... Be7 {[%clk
0:02:57.4]} 7. Bf4 {[%clk 0:02:36.7]} 7... O-O {[%clk 0:02:55.9]} 8. e3 {[%clk
0:02:36.6]} 8... c6 {[%clk 0:02:55.2]} 9. Qc2 {[%clk 0:02:34.6]} 9... Nbd7
{[%clk 0:02:54.9]} 10. Rd1 {[%clk 0:02:31.1]} 10... dxc4 {[%clk 0:02:53.5]} 11.
Bxc4 {[%clk 0:02:31]} 11... b5 {[%clk 0:02:54.1]} 12. Bd3 {[%clk 0:02:30.4]}
12... Bb7 {[%clk 0:02:54.6]} 13. O-O {[%clk 0:02:20.1]} 13... h6 {[%clk
0:02:50.5]} 14. Ne4 {[%clk 0:01:40.4]} 14... Nxe4 {[%clk 0:02:46.8]} 15. Bxe4
{[%clk 0:01:39.1]} 15... Nf6 {[%clk 0:02:47.3]} 16. Bd3 {[%clk 0:01:26.5]} 16...
Rc8 {[%clk 0:02:41.3]} 17. Qe2 {[%clk 0:01:24.3]} 17... Qb6 {[%clk 0:02:39.3]}
18. e4 {[%clk 0:01:19.8]} 18... c5 {[%clk 0:02:30.4]} 19. dxc5 {[%clk
0:01:03.8]} 19... Bxc5 {[%clk 0:02:28.5]} 20. h3 {[%clk 0:01:03.6]} 20... b4
{[%clk 0:02:26.7]} 21. e5 {[%clk 0:00:29]} 21... Nh5 {[%clk 0:02:01.3]} 22. Bh2
{[%clk 0:00:25.7]} 22... g6 {[%clk 0:01:41.8]} 23. Nd2 {[%clk 0:00:19.1]} 23...
Rfd8 {[%clk 0:01:36.4]} 24. Ne4 {[%clk 0:00:17.6]} 24... Be7 {[%clk 0:01:09.2]}
25. Nd6 {[%clk 0:00:16.1]} 25... Bxd6 {[%clk 0:00:51.4]} 26. exd6 {[%clk
0:00:15.8]} 26... Ng7 {[%clk 0:00:51.9]} 27. Be5 {[%clk 0:00:10.4]} 27... Ne8
{[%clk 0:00:45.4]} 28. Qd2 {[%clk 0:00:07.5]} 28... Kh7 {[%clk 0:00:39.2]} 29.
Qf4 {[%clk 0:00:07.4]} 29... Rd7 {[%clk 0:00:35.1]} 30. Rc1 {[%clk 0:00:02.5]}
30... Rcd8 {[%clk 0:00:33.8]} 0-1

[Event "*** Titled Tuesday Blitz"]
[Site "Chess.com"]
[Date "2020.12.29"]
[Round "6"]
[White "Shepherdboy"]
[Black "GelmanAlexander"]
[Result "1-0"]
[WhiteElo "2355"]
[BlackElo "2556"]
[TimeControl "180+1"]
[EndTime "11:05:30 PST"]
[Termination "Shepherdboy won by resignation"]

1. Nf3 {[%clk 0:03:00.9]} 1... Nf6 {[%clk 0:02:58.3]} 2. c4 {[%clk 0:03:00]}
2... c5 {[%clk 0:02:58.4]} 3. Nc3 {[%clk 0:02:58.3]} 3... e6 {[%clk 0:02:56.6]}
4. g3 {[%clk 0:02:50.3]} 4... a6 {[%clk 0:02:55.4]} 5. Bg2 {[%clk 0:02:47.9]}
5... Be7 {[%clk 0:02:56]} 6. b3 {[%clk 0:02:32.2]} 6... O-O {[%clk 0:02:55.7]}
7. Bb2 {[%clk 0:02:31.4]} 7... d6 {[%clk 0:02:55.6]} 8. O-O {[%clk 0:02:28.3]}
8... Nbd7 {[%clk 0:02:53.4]} 9. d4 {[%clk 0:02:26.5]} 9... cxd4 {[%clk
0:02:53.2]} 10. Nxd4 {[%clk 0:02:24.3]} 10... Qc7 {[%clk 0:02:53.7]} 11. Rc1
{[%clk 0:02:20.4]} 11... Ne5 {[%clk 0:02:53.3]} 12. f4 {[%clk 0:02:16.7]} 12...
Ng6 {[%clk 0:02:51.3]} 13. Qd2 {[%clk 0:02:08.8]} 13... Bd7 {[%clk 0:02:50.9]}
14. e4 {[%clk 0:02:04.8]} 14... Rac8 {[%clk 0:02:47.5]} 15. Kh1 {[%clk
0:02:00.5]} 15... Rfe8 {[%clk 0:02:46]} 16. f5 {[%clk 0:01:52.3]} 16... Ne5
{[%clk 0:02:44.5]} 17. Nce2 {[%clk 0:01:52.3]} 17... Qb8 {[%clk 0:02:20.3]} 18.
Nf4 {[%clk 0:01:43]} 18... Bd8 {[%clk 0:02:19.7]} 19. fxe6 {[%clk 0:01:32.4]}
19... fxe6 {[%clk 0:02:19.7]} 20. Nd3 {[%clk 0:01:31.3]} 20... Nf7 {[%clk
0:01:47.9]} 21. Qe2 {[%clk 0:01:21.3]} 21... b5 {[%clk 0:01:44.7]} 22. c5 {[%clk
0:01:16]} 22... dxc5 {[%clk 0:01:03.5]} 23. Nxc5 {[%clk 0:01:16.9]} 23... Bb6
{[%clk 0:00:54.3]} 24. Nxd7 {[%clk 0:01:12.1]} 24... Nxd7 {[%clk 0:00:54.1]} 25.
Nc6 {[%clk 0:00:58.3]} 25... Qd6 {[%clk 0:00:46.2]} 26. Qh5 {[%clk 0:00:57.7]}
26... Rf8 {[%clk 0:00:19]} 27. e5 {[%clk 0:00:53]} 27... Qd2 {[%clk 0:00:16.7]}
28. Ne7+ {[%clk 0:00:47.4]} 28... Kh8 {[%clk 0:00:16.8]} 29. Ng6+ {[%clk
0:00:43.5]} 29... Kg8 {[%clk 0:00:16.5]} 30. Ne7+ {[%clk 0:00:39.3]} 30... Kh8
{[%clk 0:00:16.7]} 31. Rxc8 {[%clk 0:00:35.1]} 31... Rxc8 {[%clk 0:00:13.5]} 32.
Nxc8 {[%clk 0:00:34.9]} 1-0

[Event "*** Titled Tuesday Blitz"]
[Site "Chess.com"]
[Date "2020.12.29"]
[Round "6"]
[White "pedromartinez91"]
[Black "GregShahade"]
[Result "0-1"]
[WhiteElo "2490"]
[BlackElo "2668"]
[TimeControl "180+1"]
[EndTime "11:05:33 PST"]
[Termination "GregShahade won by checkmate"]

1. e4 {[%clk 0:03:00.9]} 1... e5 {[%clk 0:03:00]} 2. Nf3 {[%clk 0:02:59.5]} 2...
Nc6 {[%clk 0:03:00.3]} 3. Bb5 {[%clk 0:02:59.5]} 3... a6 {[%clk 0:03:00.7]} 4.
Ba4 {[%clk 0:02:59.7]} 4... Nf6 {[%clk 0:03:00.6]} 5. Bxc6 {[%clk 0:03:00.1]}
5... dxc6 {[%clk 0:03:00.4]} 6. d3 {[%clk 0:03:01]} 6... Bd6 {[%clk 0:03:00.7]}
7. Nbd2 {[%clk 0:03:01.4]} 7... Be6 {[%clk 0:02:56.4]} 8. b3 {[%clk 0:02:56.4]}
8... Nd7 {[%clk 0:02:54.4]} 9. Bb2 {[%clk 0:02:56.8]} 9... Qe7 {[%clk
0:02:50.5]} 10. O-O {[%clk 0:02:53.5]} 10... O-O {[%clk 0:02:48.5]} 11. d4
{[%clk 0:02:53.5]} 11... Bg4 {[%clk 0:02:20.8]} 12. h3 {[%clk 0:02:48.7]} 12...
Bh5 {[%clk 0:02:20.6]} 13. dxe5 {[%clk 0:02:45.2]} 13... Nxe5 {[%clk 0:02:15.6]}
14. g4 {[%clk 0:02:42.1]} 14... Nxf3+ {[%clk 0:02:11.3]} 15. Qxf3 {[%clk
0:02:36.1]} 15... Bg6 {[%clk 0:02:11.5]} 16. Rfe1 {[%clk 0:02:20.5]} 16... Rad8
{[%clk 0:01:53]} 17. Nc4 {[%clk 0:02:19.3]} 17... Bb4 {[%clk 0:01:53.2]} 18. Bc3
{[%clk 0:02:16.9]} 18... b5 {[%clk 0:01:40]} 19. Ne5 {[%clk 0:02:06.3]} 19...
Bxc3 {[%clk 0:01:22]} 20. Qxc3 {[%clk 0:02:05.7]} 20... Qf6 {[%clk 0:01:18.9]}
21. Re3 {[%clk 0:01:47.6]} 21... b4 {[%clk 0:01:13.1]} 22. Qb2 {[%clk
0:01:28.9]} 22... Rfe8 {[%clk 0:01:02]} 23. Rd3 {[%clk 0:01:11.3]} 23... Rxd3
{[%clk 0:00:40.7]} 24. Nxd3 {[%clk 0:01:10.9]} 24... Qxb2 {[%clk 0:00:40.7]} 25.
Nxb2 {[%clk 0:01:11.8]} 25... Rxe4 {[%clk 0:00:35.6]} 26. Nd3 {[%clk 0:01:11.2]}
26... a5 {[%clk 0:00:30.1]} 27. a3 {[%clk 0:01:01.2]} 27... h5 {[%clk
0:00:27.2]} 28. axb4 {[%clk 0:01:01.5]} 28... axb4 {[%clk 0:00:27.3]} 29. Ra4
{[%clk 0:01:02]} 29... hxg4 {[%clk 0:00:27]} 30. Rxb4 {[%clk 0:01:01]} 30...
gxh3 {[%clk 0:00:23]} 31. Rxe4 {[%clk 0:00:55.1]} 31... Bxe4 {[%clk 0:00:23.9]}
32. Ne1 {[%clk 0:00:55.2]} 32... g5 {[%clk 0:00:22.6]} 33. f3 {[%clk 0:00:55.6]}
33... Bf5 {[%clk 0:00:21.9]} 34. Kh2 {[%clk 0:00:55.8]} 34... Kg7 {[%clk
0:00:20.5]} 35. Kg3 {[%clk 0:00:56.3]} 35... Kf6 {[%clk 0:00:20.5]} 36. b4
{[%clk 0:00:56.2]} 36... Ke5 {[%clk 0:00:19.9]} 37. c4 {[%clk 0:00:52.9]} 37...
Kd4 {[%clk 0:00:19.6]} 38. c5 {[%clk 0:00:53.3]} 38... Kc3 {[%clk 0:00:19.1]}
39. f4 {[%clk 0:00:53]} 39... gxf4+ {[%clk 0:00:18.1]} 40. Kh2 {[%clk
0:00:53.9]} 40... Bg4 {[%clk 0:00:16.3]} 41. Kg1 {[%clk 0:00:52.1]} 41... Kd2
{[%clk 0:00:16.2]} 42. Kf2 {[%clk 0:00:52.4]} 42... h2 {[%clk 0:00:16.4]} 43.
Nf3+ {[%clk 0:00:52.9]} 43... Bxf3 {[%clk 0:00:16]} 44. b5 {[%clk 0:00:53.8]}
44... h1=Q {[%clk 0:00:15.7]} 45. bxc6 {[%clk 0:00:54.3]} 45... Qg2# {[%clk
0:00:16.1]} 0-1

[Event "*** Titled Tuesday Blitz"]
[Site "Chess.com"]
[Date "2020.12.29"]
[Round "6"]
[White "Bodnar_Mykola"]
[Black "atalz0"]
[Result "1-0"]
[WhiteElo "2542"]
[BlackElo "2368"]
[TimeControl "180+1"]
[EndTime "11:05:33 PST"]
[Termination "Bodnar_Mykola won on time"]

1. d4 {[%clk 0:03:00.9]} 1... Nf6 {[%clk 0:02:58.7]} 2. c4 {[%clk 0:03:01.4]}
2... e6 {[%clk 0:02:58.9]} 3. g3 {[%clk 0:03:00.8]} 3... d5 {[%clk 0:02:58.8]}
4. Bg2 {[%clk 0:03:00.7]} 4... dxc4 {[%clk 0:02:58.8]} 5. Nf3 {[%clk 0:03:01]}
5... Nc6 {[%clk 0:02:58.5]} 6. O-O {[%clk 0:02:59.4]} 6... Rb8 {[%clk
0:02:57.8]} 7. e3 {[%clk 0:02:58.7]} 7... b5 {[%clk 0:02:56.2]} 8. Qc2 {[%clk
0:02:53.1]} 8... Bb7 {[%clk 0:02:54]} 9. b3 {[%clk 0:02:53.1]} 9... Nb4 {[%clk
0:02:48.8]} 10. Qe2 {[%clk 0:02:50.9]} 10... Nd3 {[%clk 0:02:40.5]} 11. bxc4
{[%clk 0:02:44.4]} 11... bxc4 {[%clk 0:02:41.4]} 12. Ba3 {[%clk 0:02:16]} 12...
Bd6 {[%clk 0:02:39.4]} 13. Qc2 {[%clk 0:02:11.8]} 13... Bd5 {[%clk 0:02:30.9]}
14. Nfd2 {[%clk 0:02:09.9]} 14... Nb4 {[%clk 0:02:13.1]} 15. Bxb4 {[%clk
0:02:03.7]} 15... Rxb4 {[%clk 0:02:10]} 16. e4 {[%clk 0:02:03.6]} 16... Bb7
{[%clk 0:01:56]} 17. e5 {[%clk 0:01:59.4]} 17... Bxg2 {[%clk 0:01:55.2]} 18.
Kxg2 {[%clk 0:02:00.3]} 18... Bxe5 {[%clk 0:01:55.4]} 19. dxe5 {[%clk
0:02:00.5]} 19... Qd5+ {[%clk 0:01:55.2]} 20. Nf3 {[%clk 0:01:59.1]} 20... Ng4
{[%clk 0:01:45.4]} 21. Nc3 {[%clk 0:01:58.1]} 21... Qb7 {[%clk 0:01:41.9]} 22.
Rab1 {[%clk 0:01:53.6]} 22... Nxe5 {[%clk 0:01:20.2]} 23. Rxb4 {[%clk
0:01:52.6]} 23... Qxf3+ {[%clk 0:01:15.8]} 24. Kg1 {[%clk 0:01:52.7]} 24... O-O
{[%clk 0:01:07.7]} 25. Rb5 {[%clk 0:01:43.9]} 25... Nd3 {[%clk 0:00:51.6]} 26.
Qe2 {[%clk 0:01:42.3]} 26... Qf6 {[%clk 0:00:47.7]} 27. Ne4 {[%clk 0:01:38.1]}
27... Qd4 {[%clk 0:00:43.2]} 28. Ng5 {[%clk 0:01:35.2]} 28... e5 {[%clk
0:00:20.5]} 29. Rfb1 {[%clk 0:01:21.5]} 29... h6 {[%clk 0:00:16.4]} 30. Nf3
{[%clk 0:01:20.9]} 30... Qg4 {[%clk 0:00:15.8]} 31. Rb8 {[%clk 0:01:15.7]} 31...
Rxb8 {[%clk 0:00:10.6]} 32. Rxb8+ {[%clk 0:01:16.6]} 32... Kh7 {[%clk
0:00:11.1]} 33. Qe3 {[%clk 0:01:12.3]} 33... Nf4 {[%clk 0:00:09]} 34. Kh1 {[%clk
0:01:01]} 34... f5 {[%clk 0:00:05.7]} 35. gxf4 {[%clk 0:00:59.3]} 35... e4
{[%clk 0:00:04.9]} 36. Ng1 {[%clk 0:00:53.1]} 36... Qd1 {[%clk 0:00:01.7]} 37.
Rc8 {[%clk 0:00:49.1]} 1-0